[Event "*** Titled Tuesday Blitz"]
[Site "Chess.com"]
[Date "2020.05.26"]
[Round "5"]
[White "Lunow"]
[Black "chessfrendz"]
[Result "0-1"]
[WhiteElo "2166"]
[BlackElo "2409"]
[TimeControl "180+1"]
[EndTime "10:56:54 PDT"]
[Termination "chessfrendz won on time"]

1. c4 {[%clk 0:03:00.9]} 1... e6 {[%clk 0:02:58.3]} 2. g3 {[%clk 0:03:00.5]}
2... Nf6 {[%clk 0:02:57.2]} 3. Bg2 {[%clk 0:03:00.4]} 3... d5 {[%clk 0:02:57.9]}
4. Nf3 {[%clk 0:02:59.8]} 4... c6 {[%clk 0:02:56.8]} 5. O-O {[%clk 0:02:58.8]}
5... dxc4 {[%clk 0:02:56.4]} 6. a4 {[%clk 0:02:42]} 6... Nd5 {[%clk 0:02:47.9]}
7. Na3 {[%clk 0:02:35.3]} 7... Bxa3 {[%clk 0:02:45.4]} 8. Rxa3 {[%clk
0:02:36.2]} 8... O-O {[%clk 0:02:39.6]} 9. a5 {[%clk 0:02:30.9]} 9... Na6 {[%clk
0:01:51]} 10. Ne5 {[%clk 0:02:26]} 10... b5 {[%clk 0:01:43.4]} 11. axb6 {[%clk
0:02:18.8]} 11... axb6 {[%clk 0:01:42]} 12. Nxc4 {[%clk 0:02:07.8]} 12... Bb7
{[%clk 0:01:41.4]} 13. d3 {[%clk 0:02:03.4]} 13... Nc5 {[%clk 0:01:37.1]} 14.
Rxa8 {[%clk 0:01:51.6]} 14... Bxa8 {[%clk 0:01:36.8]} 15. Bd2 {[%clk 0:01:45.9]}
15... Qc7 {[%clk 0:01:34.8]} 16. Qc2 {[%clk 0:01:42.5]} 16... Bb7 {[%clk
0:01:30.8]} 17. Rc1 {[%clk 0:01:42]} 17... Nd7 {[%clk 0:01:22.3]} 18. b4 {[%clk
0:01:18.9]} 18... h6 {[%clk 0:01:18.9]} 19. e4 {[%clk 0:01:08.9]} 19... Ne7
{[%clk 0:01:16.6]} 20. Be3 {[%clk 0:01:07.9]} 20... Ra8 {[%clk 0:01:08.6]} 21.
e5 {[%clk 0:01:06.2]} 21... Nd5 {[%clk 0:01:06.3]} 22. Bxd5 {[%clk 0:00:51.8]}
22... exd5 {[%clk 0:00:59.2]} 23. Nd6 {[%clk 0:00:51.4]} 23... Nxe5 {[%clk
0:00:54.2]} 24. Nxb7 {[%clk 0:00:49.4]} 24... Qxb7 {[%clk 0:00:53.5]} 25. Bf4
{[%clk 0:00:49]} 25... Nf3+ {[%clk 0:00:52.1]} 26. Kg2 {[%clk 0:00:45.9]} 26...
Nd4 {[%clk 0:00:51.6]} 27. Qc3 {[%clk 0:00:38.5]} 27... Ne2 {[%clk 0:00:49.3]}
28. Qxc6 {[%clk 0:00:38.4]} 28... Nxf4+ {[%clk 0:00:48.1]} 29. gxf4 {[%clk
0:00:36.7]} 29... Qxc6 {[%clk 0:00:44]} 30. Rxc6 {[%clk 0:00:30.2]} 30... Ra3
{[%clk 0:00:44.3]} 31. Rxb6 {[%clk 0:00:25.9]} 31... Rxd3 {[%clk 0:00:44.3]} 32.
Rb8+ {[%clk 0:00:26.4]} 32... Kh7 {[%clk 0:00:42.9]} 33. b5 {[%clk 0:00:25.2]}
33... Rd4 {[%clk 0:00:42.4]} 34. b6 {[%clk 0:00:22.1]} 34... Rxf4 {[%clk
0:00:41.9]} 35. b7 {[%clk 0:00:21.6]} 35... Rb4 {[%clk 0:00:41.7]} 36. Rd8
{[%clk 0:00:19.8]} 36... Rxb7 {[%clk 0:00:40.5]} 37. Rxd5 {[%clk 0:00:19.7]}
37... Kg6 {[%clk 0:00:40.8]} 38. Rc5 {[%clk 0:00:18.7]} 38... f6 {[%clk
0:00:40.3]} 39. Ra5 {[%clk 0:00:16.1]} 39... Rb3 {[%clk 0:00:40.4]} 40. Rc5
{[%clk 0:00:15.3]} 40... h5 {[%clk 0:00:40.4]} 41. Ra5 {[%clk 0:00:15]} 41... h4
{[%clk 0:00:40.3]} 42. Rc5 {[%clk 0:00:13.5]} 42... Kh6 {[%clk 0:00:40.6]} 43.
Ra5 {[%clk 0:00:12.7]} 43... g5 {[%clk 0:00:40.6]} 44. h3 {[%clk 0:00:11.3]}
44... Kg6 {[%clk 0:00:40.2]} 45. Ra6 {[%clk 0:00:07.6]} 45... Rd3 {[%clk
0:00:37.8]} 46. Ra5 {[%clk 0:00:06.6]} 46... Rd4 {[%clk 0:00:36.3]} 47. Ra6
{[%clk 0:00:05.6]} 47... Kf5 {[%clk 0:00:35.3]} 0-1

[Event "*** Titled Tuesday Blitz"]
[Site "Chess.com"]
[Date "2020.05.26"]
[Round "5"]
[White "WiktoriaPOL"]
[Black "marszach123"]
[Result "1-0"]
[WhiteElo "2006"]
[BlackElo "2178"]
[TimeControl "180+1"]
[EndTime "10:57:02 PDT"]
[Termination "WiktoriaPOL won on time"]

1. c4 {[%clk 0:03:00.9]} 1... e5 {[%clk 0:02:59.5]} 2. Nc3 {[%clk 0:03:00.5]}
2... Nf6 {[%clk 0:02:59.8]} 3. Nf3 {[%clk 0:03:00]} 3... Nc6 {[%clk 0:03:00.3]}
4. e4 {[%clk 0:02:59.8]} 4... d6 {[%clk 0:02:38.7]} 5. d4 {[%clk 0:02:58.9]}
5... Bg4 {[%clk 0:02:28.7]} 6. d5 {[%clk 0:02:51.1]} 6... Nd4 {[%clk 0:02:09.2]}
7. Be3 {[%clk 0:02:43.1]} 7... Nxf3+ {[%clk 0:01:58.6]} 8. gxf3 {[%clk
0:02:42.3]} 8... Bd7 {[%clk 0:01:58.9]} 9. Bg2 {[%clk 0:02:34.5]} 9... g6 {[%clk
0:01:58.1]} 10. b4 {[%clk 0:02:31.4]} 10... Bg7 {[%clk 0:01:57.7]} 11. c5 {[%clk
0:02:30.3]} 11... O-O {[%clk 0:01:52.5]} 12. Rc1 {[%clk 0:02:23.5]} 12... a5
{[%clk 0:01:49.7]} 13. b5 {[%clk 0:02:21.6]} 13... dxc5 {[%clk 0:01:42.5]} 14.
Bxc5 {[%clk 0:02:20.3]} 14... Re8 {[%clk 0:01:43.1]} 15. a4 {[%clk 0:02:18.1]}
15... Nh5 {[%clk 0:01:32.5]} 16. Ne2 {[%clk 0:01:55.5]} 16... Bh6 {[%clk
0:01:17]} 17. Be3 {[%clk 0:01:51.9]} 17... Bf8 {[%clk 0:00:46.4]} 18. O-O {[%clk
0:01:43]} 18... Bd6 {[%clk 0:00:17.8]} 19. Ng3 {[%clk 0:01:25.6]} 19... Nf4
{[%clk 0:00:15.7]} 20. Qd2 {[%clk 0:01:20.6]} 20... Qh4 {[%clk 0:00:09.1]} 21.
Bxf4 {[%clk 0:01:09.6]} 21... exf4 {[%clk 0:00:08.7]} 22. Ne2 {[%clk 0:01:09.4]}
22... Be5 {[%clk 0:00:03.7]} 23. Kh1 {[%clk 0:01:02.3]} 23... g5 {[%clk
0:00:03.7]} 24. Rg1 {[%clk 0:01:00.4]} 24... Kh8 {[%clk 0:00:03.7]} 25. Bf1
{[%clk 0:00:50.5]} 25... Rg8 {[%clk 0:00:03.5]} 26. Nd4 {[%clk 0:00:43]} 26...
Rg6 {[%clk 0:00:03.2]} 27. Nf5 {[%clk 0:00:41.1]} 27... Bxf5 {[%clk 0:00:01.5]}
28. exf5 {[%clk 0:00:41]} 28... Rh6 {[%clk 0:00:02]} 29. h3 {[%clk 0:00:39.3]}
29... f6 {[%clk 0:00:02.3]} 30. Rg4 {[%clk 0:00:35.7]} 30... Qh5 {[%clk
0:00:01.7]} 31. Rc2 {[%clk 0:00:13]} 31... Qf7 {[%clk 0:00:01.4]} 32. Kg2 {[%clk
0:00:10.4]} 32... Rd8 {[%clk 0:00:01.4]} 33. Qxa5 {[%clk 0:00:10.2]} 33... Qxd5
{[%clk 0:00:01.4]} 34. Bc4 {[%clk 0:00:07.7]} 34... b6 {[%clk 0:00:01.6]} 35.
Bxd5 {[%clk 0:00:05.1]} 35... bxa5 {[%clk 0:00:01.9]} 36. Be6 {[%clk 0:00:04.7]}
36... Rh5 {[%clk 0:00:01.9]} 37. Rc6 {[%clk 0:00:03.2]} 37... Rh4 {[%clk
0:00:01.8]} 38. Rxh4 {[%clk 0:00:02.8]} 38... gxh4 {[%clk 0:00:02.1]} 39. Ra6
{[%clk 0:00:03.2]} 39... Bc3 {[%clk 0:00:01.7]} 40. Ra7 {[%clk 0:00:03.5]} 40...
Be5 {[%clk 0:00:01.3]} 41. Rxa5 {[%clk 0:00:03.4]} 41... Bd4 {[%clk 0:00:01.3]}
42. Ra6 {[%clk 0:00:03.3]} 42... Bc5 {[%clk 0:00:01.2]} 43. Rc6 {[%clk
0:00:03.1]} 1-0

[Event "*** Titled Tuesday Blitz"]
[Site "Chess.com"]
[Date "2020.05.26"]
[Round "5"]
[White "Chessacademia"]
[Black "Giraffe_Chess"]
[Result "0-1"]
[WhiteElo "2254"]
[BlackElo "2415"]
[TimeControl "180+1"]
[EndTime "10:57:05 PDT"]
[Termination "Giraffe_Chess won by resignation"]

1. d4 {[%clk 0:03:00.9]} 1... f5 {[%clk 0:02:59.3]} 2. c4 {[%clk 0:02:56.8]}
2... Nf6 {[%clk 0:02:59.1]} 3. Nc3 {[%clk 0:02:54.4]} 3... e6 {[%clk 0:02:58.8]}
4. a3 {[%clk 0:02:53.2]} 4... Be7 {[%clk 0:02:58.8]} 5. f3 {[%clk 0:02:47.2]}
5... O-O {[%clk 0:02:57.7]} 6. e4 {[%clk 0:02:45.3]} 6... fxe4 {[%clk
0:02:57.2]} 7. fxe4 {[%clk 0:02:41.9]} 7... d6 {[%clk 0:02:53.2]} 8. Nf3 {[%clk
0:02:39.7]} 8... Nc6 {[%clk 0:02:49.2]} 9. Be2 {[%clk 0:02:37.8]} 9... e5 {[%clk
0:02:44.7]} 10. d5 {[%clk 0:02:33.4]} 10... Nb8 {[%clk 0:02:28.7]} 11. O-O
{[%clk 0:02:28.2]} 11... a5 {[%clk 0:02:28.6]} 12. h3 {[%clk 0:02:21.5]} 12...
Na6 {[%clk 0:02:25.4]} 13. Be3 {[%clk 0:02:21.9]} 13... Nd7 {[%clk 0:02:19]} 14.
Qd2 {[%clk 0:02:13]} 14... Ndc5 {[%clk 0:02:18.2]} 15. Qc2 {[%clk 0:02:07.1]}
15... Bd7 {[%clk 0:02:16]} 16. b3 {[%clk 0:02:02.4]} 16... Qe8 {[%clk
0:02:13.2]} 17. Rab1 {[%clk 0:01:56.6]} 17... Qg6 {[%clk 0:01:52.9]} 18. Kh1
{[%clk 0:01:50.4]} 18... a4 {[%clk 0:01:35.1]} 19. b4 {[%clk 0:01:38.8]} 19...
Nb3 {[%clk 0:01:34]} 20. Nd2 {[%clk 0:01:33.2]} 20... Nd4 {[%clk 0:01:31.2]} 21.
Bxd4 {[%clk 0:01:32.1]} 21... exd4 {[%clk 0:01:32.1]} 22. Nb5 {[%clk 0:01:30.9]}
22... Bf6 {[%clk 0:01:25.3]} 23. Qd3 {[%clk 0:01:26.6]} 23... Bxb5 {[%clk
0:01:15.9]} 24. cxb5 {[%clk 0:01:24.7]} 24... Nb8 {[%clk 0:01:16.5]} 25. Nf3
{[%clk 0:01:19.8]} 25... Nd7 {[%clk 0:01:15.7]} 26. Nxd4 {[%clk 0:01:17.9]}
26... Ne5 {[%clk 0:01:15.3]} 27. Qd2 {[%clk 0:01:17.5]} 27... Rf7 {[%clk
0:01:14.8]} 28. Nf5 {[%clk 0:01:12.5]} 28... Bg5 {[%clk 0:01:12.7]} 29. Qe1
{[%clk 0:01:07.3]} 29... Raf8 {[%clk 0:01:11.5]} 30. Qg3 {[%clk 0:01:01.9]}
30... Qf6 {[%clk 0:00:49.3]} 31. Rb2 {[%clk 0:00:50.6]} 31... Kh8 {[%clk
0:00:39.8]} 32. Rc2 {[%clk 0:00:41.9]} 32... g6 {[%clk 0:00:32.8]} 33. h4 {[%clk
0:00:39.7]} 33... gxf5 {[%clk 0:00:15.8]} 34. hxg5 {[%clk 0:00:39.6]} 34... Qg6
{[%clk 0:00:13.8]} 35. exf5 {[%clk 0:00:37.7]} 35... Rxf5 {[%clk 0:00:14.7]} 36.
Rxf5 {[%clk 0:00:35.3]} 36... Rxf5 {[%clk 0:00:14.5]} 37. Rxc7 {[%clk 0:00:34]}
37... Rxg5 {[%clk 0:00:10.3]} 38. Rc8+ {[%clk 0:00:29.4]} 38... Kg7 {[%clk
0:00:10.5]} 39. Rc7+ {[%clk 0:00:28.3]} 39... Kh8 {[%clk 0:00:10.4]} 40. Qh3
{[%clk 0:00:25.7]} 40... Rg3 {[%clk 0:00:07.8]} 41. Qc8+ {[%clk 0:00:21.6]}
41... Qg8 {[%clk 0:00:08.3]} 42. Qxg8+ {[%clk 0:00:16.8]} 42... Kxg8 {[%clk
0:00:08.5]} 43. Rxb7 {[%clk 0:00:15.7]} 43... Re3 {[%clk 0:00:08.7]} 44. Bh5
{[%clk 0:00:14.9]} 44... Re4 {[%clk 0:00:08.1]} 45. Bf3 {[%clk 0:00:12.4]} 45...
Re3 {[%clk 0:00:06.7]} 46. Re7 {[%clk 0:00:10.6]} 46... Re1+ {[%clk 0:00:05.4]}
47. Kh2 {[%clk 0:00:10.7]} 47... Nxf3+ {[%clk 0:00:06]} 48. gxf3 {[%clk
0:00:11.2]} 48... Rxe7 {[%clk 0:00:06.7]} 49. Kg3 {[%clk 0:00:11.6]} 49... Kf7
{[%clk 0:00:06.7]} 50. Kg4 {[%clk 0:00:12.5]} 50... Kf6 {[%clk 0:00:07.1]} 51.
f4 {[%clk 0:00:13.3]} 51... Rb7 {[%clk 0:00:07.1]} 52. b6 {[%clk 0:00:13.1]}
52... Rxb6 {[%clk 0:00:06.8]} 53. f5 {[%clk 0:00:12.9]} 0-1

[Event "*** Titled Tuesday Blitz"]
[Site "Chess.com"]
[Date "2020.05.26"]
[Round "5"]
[White "Tashik"]
[Black "XDPS"]
[Result "0-1"]
[WhiteElo "2444"]
[BlackElo "2704"]
[TimeControl "180+1"]
[EndTime "10:57:07 PDT"]
[Termination "XDPS won on time"]

1. c4 {[%clk 0:03:00.9]} 1... c6 {[%clk 0:02:56]} 2. d4 {[%clk 0:02:59.9]} 2...
d5 {[%clk 0:02:56.1]} 3. Nf3 {[%clk 0:03:00.5]} 3... Nf6 {[%clk 0:02:55.9]} 4.
Nc3 {[%clk 0:03:00.7]} 4... e6 {[%clk 0:02:56.1]} 5. Bg5 {[%clk 0:03:00.5]} 5...
Nbd7 {[%clk 0:02:56.1]} 6. e3 {[%clk 0:03:00.1]} 6... Qa5 {[%clk 0:02:56.3]} 7.
Nd2 {[%clk 0:02:46.1]} 7... dxc4 {[%clk 0:02:55.2]} 8. Bxf6 {[%clk 0:02:45.7]}
8... Nxf6 {[%clk 0:02:55.6]} 9. Nxc4 {[%clk 0:02:46.2]} 9... Qc7 {[%clk
0:02:56.1]} 10. Rc1 {[%clk 0:02:45.1]} 10... Be7 {[%clk 0:02:56.2]} 11. Be2
{[%clk 0:02:45.6]} 11... O-O {[%clk 0:02:56.4]} 12. O-O {[%clk 0:02:46.2]} 12...
Rd8 {[%clk 0:02:56.8]} 13. Qb3 {[%clk 0:02:43]} 13... Bd7 {[%clk 0:02:57.1]} 14.
Ne5 {[%clk 0:02:40.7]} 14... Be8 {[%clk 0:02:56.7]} 15. f4 {[%clk 0:02:38.6]}
15... Rac8 {[%clk 0:02:56.7]} 16. a4 {[%clk 0:02:35.1]} 16... Qb8 {[%clk
0:02:55.5]} 17. Nd3 {[%clk 0:02:25.8]} 17... b6 {[%clk 0:02:35.8]} 18. Ne5
{[%clk 0:02:14.4]} 18... c5 {[%clk 0:02:26.9]} 19. Ba6 {[%clk 0:02:12.9]} 19...
Rc7 {[%clk 0:02:19.7]} 20. Nb5 {[%clk 0:02:05.5]} 20... Rb7 {[%clk 0:02:01.4]}
21. Bxb7 {[%clk 0:02:02.8]} 21... Qxb7 {[%clk 0:02:02.3]} 22. dxc5 {[%clk
0:01:57.4]} 22... bxc5 {[%clk 0:01:26.9]} 23. Nd4 {[%clk 0:01:41.1]} 23... Qa6
{[%clk 0:01:20.8]} 24. Nb5 {[%clk 0:01:34.9]} 24... Qb7 {[%clk 0:01:19.5]} 25.
Nd4 {[%clk 0:00:16.1]} 25... Qa6 {[%clk 0:01:16.3]} 26. Nb5 {[%clk 0:00:16.1]}
26... Qb6 {[%clk 0:00:45.7]} 27. Nc4 {[%clk 0:00:15.6]} 27... Qb8 {[%clk
0:00:45.4]} 28. Qc2 {[%clk 0:00:12.5]} 28... a6 {[%clk 0:00:43.3]} 29. Nc3
{[%clk 0:00:12.2]} 29... Qb4 {[%clk 0:00:42.9]} 30. b3 {[%clk 0:00:10.8]} 30...
Nd5 {[%clk 0:00:43]} 31. Nxd5 {[%clk 0:00:10]} 31... exd5 {[%clk 0:00:43.4]} 32.
Ne5 {[%clk 0:00:10.9]} 32... Qb6 {[%clk 0:00:22.8]} 33. Nd3 {[%clk 0:00:10.8]}
33... Rc8 {[%clk 0:00:22]} 34. Ne5 {[%clk 0:00:09.2]} 34... f6 {[%clk
0:00:16.4]} 35. Qf5 {[%clk 0:00:08.2]} 35... Rd8 {[%clk 0:00:14.8]} 36. Nf3
{[%clk 0:00:08.1]} 36... Bg6 {[%clk 0:00:12.9]} 37. Qg4 {[%clk 0:00:06.7]} 37...
Qxb3 {[%clk 0:00:12.1]} 38. Qe6+ {[%clk 0:00:06.9]} 38... Kf8 {[%clk 0:00:12.4]}
39. Qxa6 {[%clk 0:00:06.3]} 39... Qxe3+ {[%clk 0:00:09.8]} 40. Kh1 {[%clk
0:00:06.8]} 40... Be4 {[%clk 0:00:09.7]} 41. Rce1 {[%clk 0:00:06.2]} 41... Qb3
{[%clk 0:00:09.9]} 42. Qe6 {[%clk 0:00:06]} 42... Qb8 {[%clk 0:00:08.7]} 43. Ng5
{[%clk 0:00:05.3]} 43... fxg5 {[%clk 0:00:05.9]} 44. fxg5+ {[%clk 0:00:06.2]}
44... Ke8 {[%clk 0:00:06.2]} 45. Rf7 {[%clk 0:00:05.2]} 45... Qd6 {[%clk
0:00:06.6]} 46. Rxe7+ {[%clk 0:00:04.3]} 46... Qxe7 {[%clk 0:00:06.6]} 47. Qc6+
{[%clk 0:00:01.8]} 47... Rd7 {[%clk 0:00:05.3]} 0-1

[Event "*** Titled Tuesday Blitz"]
[Site "Chess.com"]
[Date "2020.05.26"]
[Round "5"]
[White "GregShahade"]
[Black "Msb2"]
[Result "1-0"]
[WhiteElo "2644"]
[BlackElo "2861"]
[TimeControl "180+1"]
[EndTime "10:57:08 PDT"]
[Termination "GregShahade won on time"]

1. e4 {[%clk 0:03:00.9]} 1... e6 {[%clk 0:03:00.2]} 2. d4 {[%clk 0:03:00.2]}
2... d5 {[%clk 0:03:00.9]} 3. Nd2 {[%clk 0:02:58.3]} 3... c5 {[%clk 0:03:00.8]}
4. exd5 {[%clk 0:02:56.6]} 4... Qxd5 {[%clk 0:03:01.7]} 5. dxc5 {[%clk 0:02:49]}
5... Nf6 {[%clk 0:02:59.6]} 6. Ngf3 {[%clk 0:02:48]} 6... Qxc5 {[%clk
0:02:58.5]} 7. Bd3 {[%clk 0:02:47.3]} 7... Nbd7 {[%clk 0:02:59.1]} 8. O-O {[%clk
0:02:37.4]} 8... Qc7 {[%clk 0:02:58.7]} 9. Qe2 {[%clk 0:02:35.6]} 9... Nc5
{[%clk 0:02:58.7]} 10. Bb5+ {[%clk 0:02:34.3]} 10... Bd7 {[%clk 0:02:58.6]} 11.
Nb3 {[%clk 0:02:31.5]} 11... Bxb5 {[%clk 0:02:48.7]} 12. Qxb5+ {[%clk 0:02:31]}
12... Ncd7 {[%clk 0:02:49.4]} 13. Bg5 {[%clk 0:02:22.4]} 13... a6 {[%clk
0:02:48.7]} 14. Qe2 {[%clk 0:02:21.9]} 14... Bd6 {[%clk 0:02:47.6]} 15. Rad1
{[%clk 0:02:19.2]} 15... O-O {[%clk 0:02:40.3]} 16. Rfe1 {[%clk 0:02:19.2]}
16... Rad8 {[%clk 0:02:37.6]} 17. c3 {[%clk 0:02:16.8]} 17... Rfe8 {[%clk
0:02:29.2]} 18. h3 {[%clk 0:02:16.9]} 18... h6 {[%clk 0:02:27.1]} 19. Bc1 {[%clk
0:02:13.6]} 19... Nf8 {[%clk 0:02:24.9]} 20. Nbd2 {[%clk 0:01:58.3]} 20... Ng6
{[%clk 0:02:23.6]} 21. Ne4 {[%clk 0:01:55.7]} 21... Nxe4 {[%clk 0:02:20.7]} 22.
Qxe4 {[%clk 0:01:55.9]} 22... Bc5 {[%clk 0:02:21.3]} 23. Be3 {[%clk 0:01:54.2]}
23... Bxe3 {[%clk 0:01:57.5]} 24. Qxe3 {[%clk 0:01:53.4]} 24... Rxd1 {[%clk
0:01:45.1]} 25. Rxd1 {[%clk 0:01:53.1]} 25... Rd8 {[%clk 0:01:46]} 26. Rd4
{[%clk 0:01:44.8]} 26... Rxd4 {[%clk 0:01:17.4]} 27. Qxd4 {[%clk 0:01:44.4]}
27... Ne7 {[%clk 0:01:15.1]} 28. c4 {[%clk 0:01:34]} 28... Nc6 {[%clk
0:01:13.4]} 29. Qd2 {[%clk 0:01:28.7]} 29... Qe7 {[%clk 0:01:07.7]} 30. b3
{[%clk 0:01:22.9]} 30... g5 {[%clk 0:00:34.4]} 31. Qd3 {[%clk 0:01:18.3]} 31...
Kg7 {[%clk 0:00:31.3]} 32. g3 {[%clk 0:01:12.4]} 32... Qf6 {[%clk 0:00:30.1]}
33. Kg2 {[%clk 0:01:10.5]} 33... h5 {[%clk 0:00:30.6]} 34. Qe4 {[%clk 0:01:10]}
34... Qg6 {[%clk 0:00:22.9]} 35. Qe3 {[%clk 0:01:04.3]} 35... g4 {[%clk
0:00:20.5]} 36. hxg4 {[%clk 0:01:01]} 36... hxg4 {[%clk 0:00:21.4]} 37. Ne5
{[%clk 0:00:57.4]} 37... Nxe5 {[%clk 0:00:19.1]} 38. Qxe5+ {[%clk 0:00:57.9]}
38... Kh7 {[%clk 0:00:16.3]} 39. Qf4 {[%clk 0:00:55]} 39... Kg7 {[%clk
0:00:12.6]} 40. Qd4+ {[%clk 0:00:54.5]} 40... Kh7 {[%clk 0:00:12.5]} 41. c5
{[%clk 0:00:51.2]} 41... Qf5 {[%clk 0:00:12.6]} 42. b4 {[%clk 0:00:47.9]} 42...
Qf3+ {[%clk 0:00:12.1]} 43. Kh2 {[%clk 0:00:46.6]} 43... Kg6 {[%clk 0:00:13]}
44. a4 {[%clk 0:00:44.9]} 44... Kf5 {[%clk 0:00:09.6]} 45. b5 {[%clk 0:00:38.8]}
45... axb5 {[%clk 0:00:10.5]} 46. axb5 {[%clk 0:00:38.8]} 46... Qb3 {[%clk
0:00:07.3]} 47. Qf4+ {[%clk 0:00:36.4]} 47... Kg6 {[%clk 0:00:07.2]} 48. Qxg4+
{[%clk 0:00:37]} 48... Kf6 {[%clk 0:00:08.1]} 49. Qf4+ {[%clk 0:00:36.3]} 49...
Ke7 {[%clk 0:00:08.6]} 50. Qc7+ {[%clk 0:00:35.5]} 50... Kf6 {[%clk 0:00:09.3]}
51. Qxb7 {[%clk 0:00:34.2]} 51... Qb2 {[%clk 0:00:09.6]} 52. Kg2 {[%clk
0:00:31.5]} 52... Qc2 {[%clk 0:00:07.9]} 53. Qf3+ {[%clk 0:00:30]} 53... Kg7
{[%clk 0:00:08.4]} 54. c6 {[%clk 0:00:29.4]} 54... Qc5 {[%clk 0:00:07.7]} 55.
Qd3 {[%clk 0:00:24.3]} 55... f5 {[%clk 0:00:04]} 56. Qd7+ {[%clk 0:00:23.5]}
56... Kf6 {[%clk 0:00:04.1]} 57. c7 {[%clk 0:00:22.8]} 57... Qc2 {[%clk
0:00:04.8]} 58. Qc6 {[%clk 0:00:20.9]} 1-0

[Event "*** Titled Tuesday Blitz"]
[Site "Chess.com"]
[Date "2020.05.26"]
[Round "5"]
[White "Siemba"]
[Black "White_Ghost"]
[Result "1-0"]
[WhiteElo "2296"]
[BlackElo "2473"]
[TimeControl "180+1"]
[EndTime "10:57:08 PDT"]
[Termination "Siemba won by checkmate"]

1. d4 {[%clk 0:03:00.8]} 1... Nf6 {[%clk 0:02:58.9]} 2. c4 {[%clk 0:02:58.3]}
2... d6 {[%clk 0:02:59]} 3. Nc3 {[%clk 0:02:56.8]} 3... Nbd7 {[%clk 0:02:59.9]}
4. e4 {[%clk 0:02:40.7]} 4... g6 {[%clk 0:02:59.8]} 5. h3 {[%clk 0:02:39.4]}
5... Bg7 {[%clk 0:02:59.5]} 6. Be3 {[%clk 0:02:39.9]} 6... O-O {[%clk
0:02:58.8]} 7. g4 {[%clk 0:02:40.4]} 7... c5 {[%clk 0:02:54.3]} 8. Nge2 {[%clk
0:02:37.3]} 8... cxd4 {[%clk 0:02:52.5]} 9. Nxd4 {[%clk 0:02:38.2]} 9... Nc5
{[%clk 0:02:44.2]} 10. Bg2 {[%clk 0:02:38.3]} 10... Nfd7 {[%clk 0:02:38.4]} 11.
O-O {[%clk 0:02:30.4]} 11... Ne5 {[%clk 0:02:33]} 12. b3 {[%clk 0:02:07.8]}
12... e6 {[%clk 0:02:31.5]} 13. f4 {[%clk 0:01:32.4]} 13... Nc6 {[%clk
0:02:25.7]} 14. Rc1 {[%clk 0:01:27.2]} 14... Ne7 {[%clk 0:02:06]} 15. Ndb5
{[%clk 0:01:20.4]} 15... b6 {[%clk 0:01:47.3]} 16. Nxd6 {[%clk 0:01:15.1]} 16...
Bd7 {[%clk 0:01:46.2]} 17. e5 {[%clk 0:01:07.6]} 17... Bc6 {[%clk 0:01:44.7]}
18. b4 {[%clk 0:00:59.9]} 18... Bxg2 {[%clk 0:01:38.8]} 19. Kxg2 {[%clk
0:01:00.8]} 19... Na6 {[%clk 0:01:37.7]} 20. a3 {[%clk 0:00:57.8]} 20... Qc7
{[%clk 0:01:35.3]} 21. Nce4 {[%clk 0:00:53.8]} 21... Rfd8 {[%clk 0:01:32]} 22.
Qa4 {[%clk 0:00:52.9]} 22... Nb8 {[%clk 0:01:28]} 23. Rfd1 {[%clk 0:00:43]}
23... Nbc6 {[%clk 0:01:25.2]} 24. Nb5 {[%clk 0:00:39.7]} 24... Qb7 {[%clk
0:01:18.8]} 25. Ned6 {[%clk 0:00:39.8]} 25... Qb8 {[%clk 0:01:18.6]} 26. Qa6
{[%clk 0:00:33]} 26... Rd7 {[%clk 0:01:10]} 27. Rd2 {[%clk 0:00:25.7]} 27... Bf8
{[%clk 0:00:58.8]} 28. Rcd1 {[%clk 0:00:25.4]} 28... h5 {[%clk 0:00:45.9]} 29.
Ne4 {[%clk 0:00:24.2]} 29... Rxd2+ {[%clk 0:00:44.7]} 30. Rxd2 {[%clk
0:00:24.6]} 30... Nxe5 {[%clk 0:00:35.7]} 31. fxe5 {[%clk 0:00:14]} 31... Qxe5
{[%clk 0:00:36.6]} 32. Nbc3 {[%clk 0:00:12.4]} 32... hxg4 {[%clk 0:00:30.8]} 33.
hxg4 {[%clk 0:00:11]} 33... Bg7 {[%clk 0:00:28.7]} 34. Qb7 {[%clk 0:00:07.9]}
34... Re8 {[%clk 0:00:26.4]} 35. Qd7 {[%clk 0:00:07.6]} 35... Kf8 {[%clk
0:00:23.6]} 36. Bd4 {[%clk 0:00:08.2]} 36... Qb8 {[%clk 0:00:16.8]} 37. Bxg7+
{[%clk 0:00:09.1]} 37... Kxg7 {[%clk 0:00:17.7]} 38. Nd6 {[%clk 0:00:10]} 38...
Qa8+ {[%clk 0:00:13.5]} 39. Kg3 {[%clk 0:00:08.5]} 39... Rf8 {[%clk 0:00:07]}
40. Qxe7 {[%clk 0:00:08.9]} 40... Qh1 {[%clk 0:00:07.4]} 41. Rf2 {[%clk
0:00:05.3]} 41... Qg1+ {[%clk 0:00:07.3]} 42. Kf3 {[%clk 0:00:06]} 42... Qc1
{[%clk 0:00:06.8]} 43. Nce4 {[%clk 0:00:04.6]} 43... Qxa3+ {[%clk 0:00:05.8]}
44. Kg2 {[%clk 0:00:05.2]} 44... Qe3 {[%clk 0:00:03.1]} 45. Rxf7+ {[%clk
0:00:05.5]} 45... Rxf7 {[%clk 0:00:01.2]} 46. Qxf7+ {[%clk 0:00:06.4]} 46... Kh6
{[%clk 0:00:02.1]} 47. Qf8+ {[%clk 0:00:06.5]} 47... Kh7 {[%clk 0:00:02.3]} 48.
Nf6# {[%clk 0:00:06.9]} 1-0